bitfinex-derivatives/quotes_ETHF0:USTF0_20250501
["timestamp","ask_amount","ask_price","bid_price","bid_amount"]
[1746109544940,1.08801,1837.8,1837.7,1.08799]
[1746109546243,1.08807,1837.7,1837.6,1.08805]
[1746109546543,4.29587,1837.7,1837.6,1.08805]
[1746109546744,3.2078,1837.7,1837.6,1.08805]
[1746109547041,1.08804,1837.8,1837.7,1.08804]
[1746109547245,4.29578,1837.9,1837.8,1.08798]
[1746109547436,1.088,1837.8,1837.7,1.08799]
[1746109548045,1.08795,1837.9,1837.8,1.08798]
[1746109548350,1.0879,1838.0,1837.9,1.08788]
[1746109548535,1.08795,1837.9,1837.8,1.08793]
[1746109548735,1.088,1837.8,1837.7,1.08798]
[1746109549530,1.08803,1837.8,1837.7,1.08801]
[1746109550141,1.08807,1837.7,1837.6,1.08805]
[1746109550643,1.08802,1837.8,1837.7,1.08801]
[1746109551137,13.1558709,1838.7,1838.1,2.71952]
[1746109551343,1.08759,1838.5,1838.3,1.08768]
[1746109551644,7.90729952,1838.4,1838.2,1.08769]
[1746109551943,3.61182952,1838.4,1838.3,1.08768]
[1746109552647,3.61182952,1838.4,1838.3,4.29548]
[1746109552940,7.17189952,1838.8,1838.7,1.08745]
[1746109553448,3.96409952,1838.8,1838.7,1.08745]
[1746109553640,3.96409952,1838.8,1838.7,45.85545]
[1746109554351,3.96409952,1838.8,1838.7,54.06325]
[1746109554748,3.96409952,1838.8,1838.7,49.06325]
[1746109555045,3.96409952,1838.8,1838.7,45.85545]
[1746109557147,0.35227,1838.8,1838.7,45.85545]
[1746109560547,1e-05,1838.8,1838.7,54.06325]
[1746109561145,1e-05,1838.8,1838.7,49.06325]
[1746109562956,1e-05,1838.8,1838.7,45.85545]
[1746109563954,1.0874,1838.8,1838.7,45.85545]
[1746109564254,1.0874,1838.8,1838.7,44.768]
[1746109564550,1e-05,1838.8,1838.7,45.85545]
[1746109564760,4.29504,1839.1,1838.9,1.08731]
[1746109565055,3.2078,1839.1,1839.0,1.08727]
[1746109566453,4.29501,1839.1,1839.0,1.08727]
[1746109568959,3.2078,1839.1,1838.9,1.08729]
[1746109569262,1.08732,1839.0,1838.9,1.08732]
[1746109570453,4.29506,1839.1,1838.9,1.08732]
[1746109570658,3.2078,1839.1,1839.0,1.08727]
[1746109570959,1.08719,1839.2,1839.1,1.08721]
[1746109572358,1.08718,1839.2,1839.1,1.08719]
[1746109572759,4.29492,1839.3,1839.2,1.08715]
[1746109574962,1.08721,1839.2,1839.1,1.08719]
[1746109575362,4.29494,1839.3,1839.2,1.08715]
[1746109575661,3.2078,1839.7,1839.0,5.43637]
[1746109575864,1.08694,1839.6,1839.5,1.08693]
[1746109576062,1.087,1839.5,1839.4,1.08699]
[1746109576261,1.08701,1839.5,1839.4,1.087]
[1746109576462,4.29481,1839.5,1839.4,1.087]
[1746109576970,1.08704,1839.4,1839.1,3.948]
[1746109577167,1.08712,1839.3,1839.1,3.948]
[1746109577468,1.08712,1839.3,1839.2,1.08715]
[1746109577773,1.08715,1839.2,1839.1,3.948]
[1746109578072,1.08727,1839.0,1838.8,1.08735]
[1746109578369,1.08732,1839.0,1838.8,1.08735]
[1746109578563,1.08733,1838.9,1838.8,1.08735]
[1746109578758,1.08739,1838.8,1838.7,40.8]
[1746109578963,4.29519,1838.8,1838.7,40.8]
[1746109579164,1.08751,1838.6,1838.4,1.08758]
[1746109579469,1.08757,1838.5,1838.3,5.03566]
[1746109579661,1.08757,1838.5,1838.4,40.8]
[1746109579866,4.29535,1838.6,1838.4,41.8876]
[1746109580068,4.29535,1838.6,1838.4,40.8]
[1746109580361,4.29535,1838.6,1838.4,41.8876]
[1746109580565,3.2078,1838.6,1838.5,1.08757]
[1746109581966,4.29525,1838.7,1838.5,1.08752]
[1746109582171,4.29525,1838.7,1838.4,40.8]
[1746109582372,4.29525,1838.7,1838.6,1.08751]
[1746109582775,4.29525,1838.7,1838.5,1.08752]
[1746109583067,4.29525,1838.7,1838.4,40.8]
[1746109583068,1.08751,1838.6,1838.4,41.8876]
[1746109583371,3.2078,1838.5,1838.4,41.8876]
[1746109584563,3.2078,1838.7,1838.6,1.08745]
[1746109584770,4.29514,1838.9,1838.8,1.08737]
[1746109584968,4.29514,1838.9,1838.7,1.08741]
[1746109585163,4.29514,1838.9,1838.5,2.71883]
[1746109585369,4.29517,1838.9,1838.5,2.71883]
[1746109585974,4.29517,1838.9,1838.8,1.08739]
[1746109586175,4.29517,1838.9,1838.7,1.0874]
[1746109586576,4.29517,1838.9,1838.8,1.08739]
[1746109590176,3.2078,1838.9,1838.8,1.08739]
[1746109594577,4.29506,1839.1,1838.7,2.71849]
[1746109594780,1.08719,1839.2,1838.8,2.71848]
[1746109594981,1.08719,1839.2,1839.1,1.08721]
[1746109595278,7.1558,1839.3,1839.2,1.08715]
[1746109595279,4.29493,1839.3,1839.2,1.08715]
[1746109596280,4.29494,1839.3,1839.2,1.08715]
[1746109596871,4.29494,1839.3,1838.9,2.71833]
[1746109597079,1.0872,1839.2,1839.1,1.08718]
[1746109597378,1.08725,1839.1,1839.0,1.08723]
[1746109597978,4.29505,1839.1,1839.0,1.08723]
[1746109599680,1.08731,1839.0,1838.9,1.0873]
[1746109599874,1.08741,1838.8,1838.7,1.0874]
[1746109600175,1.08747,1838.7,1838.6,1.08746]
[1746109600378,1.08741,1838.8,1838.7,1.0874]
[1746109602678,1.08751,1838.6,1838.5,3.948]
[1746109602876,1.08757,1838.5,1838.4,40.8]
[1746109603075,1.08757,1838.5,1838.4,41.88763]
[1746109603678,4.29537,1838.5,1838.4,41.88763]
[1746109603976,4.29537,1838.5,1838.4,40.8]
[1746109604178,4.29537,1838.5,1838.4,41.88763]
[1746109604875,1.08763,1838.4,1838.2,3.948]
[1746109605068,3.2078,1838.3,1837.9,20.27692892]
[1746109605275,4.29553,1838.3,1838.2,1.08774]
[1746109605775,3.2078,1838.5,1838.1,50.6762]
[1746109605974,1.08765,1838.4,1838.3,1.08764]
[1746109606474,1.08771,1838.3,1838.2,1.0877]
[1746109607676,1.08774,1838.2,1838.1,45.83676]
[1746109609284,4.29551,1838.3,1838.2,1.08774]
[1746109609479,1.08768,1838.4,1838.3,1.08767]
[1746109609677,1.0877,1838.3,1838.2,1.08769]
[1746109609880,1.08767,1838.4,1838.3,1.08766]
[1746109610271,1.08772,1838.3,1838.2,1.0877]
[1746109610477,4.2954,1838.5,1838.4,1.08763]
[1746109610677,4.29537,1838.5,1838.4,1.08763]
[1746109610877,3.2078,1838.5,1838.4,1.08763]
[1746109611074,4.29537,1838.5,1838.4,1.08763]
[1746109611781,3.2078,1838.5,1838.4,1.08763]
[1746109611979,3.61182952,1838.6,1838.5,1.08757]
[1746109612279,3.61182952,1838.6,1838.5,8.22737]
[1746109612586,3.61182952,1838.8,1838.7,1.08745]
[1746109612886,4.69925952,1838.8,1838.7,1.08745]
[1746109613483,3.61182952,1838.8,1838.7,1.08745]
[1746109615683,3.2078,1838.9,1838.8,1.08739]
[1746109618891,1.08722,1839.1,1839.0,1.08725]
[1746109619086,3.2078,1839.2,1838.7,2.7185]
[1746109619286,1.08723,1839.1,1838.9,1.08728]
[1746109619481,1.08727,1839.0,1838.8,1.08734]
[1746109619989,1.08736,1838.9,1838.7,1.0874]
[1746109620189,4.29516,1838.9,1838.8,1.08739]
[1746109620491,3.2078,1838.9,1838.8,1.08739]
[1746109620687,4.29507,1839.1,1838.9,1.08733]
[1746109621189,1.08727,1839.0,1838.9,1.08733]
[1746109621590,1.08735,1838.9,1838.5,9.8587]
[1746109622189,1.08741,1838.8,1838.5,3.932]
[1746109622392,1.08745,1838.7,1838.6,1.08747]
[1746109622689,4.29525,1838.7,1838.6,1.08747]
[1746109623185,3.2078,1838.7,1838.6,1.08747]
[1746109624588,3.2078,1838.7,1838.3,3.2078]
[1746109624787,5.92644,1838.7,1838.2,3.931]
[1746109625091,4.29548,1838.4,1838.2,3.931]
[1746109625392,4.29548,1838.4,1838.2,5.01869]
[1746109625595,3.2078,1838.4,1838.3,1.08768]
[1746109625785,1.08756,1838.6,1838.5,1.08757]
[1746109625985,1.08751,1838.6,1838.5,1.08753]
[1746109626181,3.2078,1838.8,1838.5,2.71884]
[1746109626390,4.29509,1839.0,1838.9,1.08733]
[1746109626794,7.1388,1839.2,1839.0,1.08724]
[1746109626996,1.08723,1839.1,1839.0,1.08724]
[1746109627285,7.1388,1839.2,1838.8,5.43688]
[1746109627490,8.22601,1839.2,1839.1,1.08721]
[1746109627685,1.08723,1839.1,1839.0,1.08723]
[1746109627880,7.1388,1839.2,1838.8,2.71844]
[1746109628084,1.08722,1839.1,1839.0,1.08723]
[1746109628493,3.2078,1839.2,1839.1,1.08721]
[1746109630382,3.2078,1839.2,1839.1,41.88721]
[1746109630584,4.29495,1839.2,1839.1,41.88721]
[1746109630791,3.2078,1839.2,1839.1,41.88721]
[1746109632196,4.29495,1839.2,1839.1,41.88721]
[1746109632398,3.2078,1839.2,1839.1,41.88721]
[1746109634493,1.08707,1839.4,1839.3,1.08709]
[1746109634694,3.2078,1839.5,1839.3,1.08709]
[1746109634695,4.29482,1839.5,1839.3,1.08709]
[1746109634894,1.08703,1839.4,1839.3,1.08709]
[1746109635199,3.2078,1839.4,1839.3,1.08709]
[1746109635492,3.61182952,1839.6,1839.5,1.08698]
[1746109635700,4.69874952,1839.6,1839.5,1.08698]
[1746109637697,3.61182952,1839.6,1839.1,47.44893]
[1746109637900,1.08706,1839.4,1839.3,1.08703]
[1746109638197,4.29482,1839.5,1839.4,1.08703]
[1746109641698,1.08703,1839.4,1839.3,1.08704]
[1746109641893,1.08702,1839.5,1839.4,1.08701]
[1746109642093,3.2078,1839.5,1839.3,2.71771]
[1746109642291,3.2078,1839.5,1839.4,1.08703]
[1746109642700,4.29478,1839.5,1839.4,1.08703]
[1746109644595,1.08698,1839.5,1839.4,1.08703]
[1746109645299,4.29478,1839.5,1839.4,1.08703]
[1746109645603,1.08708,1839.4,1839.3,1.08706]
[1746109646903,4.29484,1839.5,1839.4,1.08703]
[1746109647604,3.2078,1839.5,1839.4,1.08703]
[1746109648196,1.08696,1839.6,1839.5,1.08698]
[1746109648405,4.29468,1839.7,1839.6,1.08692]
[1746109649606,4.2947,1839.7,1839.6,1.08692]
[1746109650598,0.10870746,1839.8,1839.7,1.08686]
[1746109650798,7.90636952,1839.9,1839.8,1.0868]
[1746109651105,4.29454,1839.9,1839.8,1.0868]
[1746109652906,1.08681,1839.8,1839.7,1.08681]
[1746109653403,1.08685,1839.8,1839.7,1.08684]
[1746109656405,1.08687,1839.7,1839.6,1.08687]
[1746109656711,1.08685,1839.8,1839.7,1.08685]
[1746109657306,4.29455,1839.9,1839.8,1.0868]
[1746109657708,3.2078,1839.9,1839.8,1.0868]
[1746109658604,4.29454,1839.9,1839.8,1.0868]
[1746109658908,1.08669,1840.0,1839.9,1.08674]
[1746109660207,1.08676,1839.9,1839.8,1.08675]
[1746109660408,4.29456,1839.9,1839.8,1.08675]
[1746109661110,3.2078,1839.9,1839.8,1.08675]
[1746109661303,4.29454,1839.9,1839.8,1.08675]
[1746109661806,1.08683,1839.8,1839.7,1.08683]
[1746109662003,4.29459,1839.9,1839.8,1.0868]
[1746109662311,1.08681,1839.8,1839.7,1.08681]
[1746109663211,4.29459,1839.9,1839.8,1.0868]
[1746109663711,3.2078,1839.9,1839.8,1.0868]
[1746109665315,4.29454,1839.9,1839.8,1.0868]
[1746109665706,1.08681,1839.8,1839.7,1.08681]
[1746109665908,4.29458,1839.9,1839.8,1.0868]
[1746109666104,3.61182952,1840.2,1840.1,1.08662]
[1746109666314,3.61182952,1840.2,1840.1,8.20442]
[1746109666709,3.61182952,1840.2,1840.1,45.79662]
[1746109669014,4.2942,1840.5,1840.1,47.42652]
[1746109669214,4.2942,1840.5,1840.3,1.08646]
[1746109669412,4.2942,1840.5,1840.4,1.08644]
[1746109669715,4.2942,1840.5,1840.3,1.08645]
[1746109670318,1.0864,1840.5,1840.1,50.63432]
[1746109670620,1.0864,1840.5,1840.4,1.08644]
[1746109670816,1.08638,1840.5,1840.4,1.08644]
[1746109671517,1.08638,1840.5,1840.3,1.08645]
[1746109671718,4.29428,1840.4,1840.2,1.08653]
[1746109671917,4.29428,1840.4,1840.3,1.0865]
[1746109672120,3.2078,1840.4,1840.3,1.0865]
[1746109672414,3.2078,1840.6,1840.2,2.7164]
[1746109672619,4.29408,1840.7,1840.3,2.71626]
[1746109672819,4.29412,1840.7,1840.5,1.08633]
[1746109673722,3.2078,1840.7,1840.4,3.891]
[1746109673923,4.2941,1840.7,1840.6,1.08633]
[1746109674214,1.0863,1840.7,1840.6,1.08633]
[1746109678519,1.0863,1840.7,1840.5,1.08634]
[1746109678726,3.2078,1840.6,1840.5,1.08634]
[1746109679025,4.29413,1840.6,1840.5,1.08634]
[1746109679224,3.2078,1840.8,1840.6,1.08632]
[1746109679523,4.29403,1840.8,1840.7,1.08624]
[1746109679712,1.08631,1840.7,1840.6,1.0863]
[1746109680422,1.08626,1840.8,1840.7,1.08627]
[1746109680922,4.29406,1840.8,1840.7,1.08627]
[1746109681122,1.08628,1840.7,1840.6,1.08628]
[1746109681928,1.0862,1840.9,1840.8,1.08617]
[1746109682132,3.61182952,1841.2,1840.8,2.71553]
[1746109682426,1.0861,1841.0,1840.9,1.0861]
[1746109683021,4.29387,1841.1,1841.0,1.08609]
[1746109683221,3.61182952,1841.2,1841.1,1.08603]
[1746109683422,4.69779952,1841.2,1841.1,1.08603]
[1746109683629,1.08597,1841.2,1841.1,1.08603]
[1746109683820,1.08591,1841.3,1841.2,1.08593]
[1746109684429,1.08591,1841.3,1841.2,41.88593]
[1746109684626,4.69770952,1841.4,1841.2,44.0078]
[1746109684816,1.08591,1841.3,1841.2,40.8]
[1746109685129,7.90551952,1841.4,1841.3,1.08591]
[1746109685420,1.08591,1841.3,1841.2,41.88593]
[1746109685631,7.90548952,1841.4,1841.2,41.88593]
[1746109685928,6.81962952,1841.4,1841.3,1.08591]
[1746109686316,7.90549952,1841.4,1841.2,41.88595]
[1746109686523,6.81962952,1841.4,1841.3,1.08591]
[1746109687325,7.90547952,1841.4,1841.3,1.08591]
[1746109687523,7.90547952,1841.4,1841.2,40.8]
[1746109687722,4.29365,1841.4,1841.3,1.08591]
[1746109687923,4.2937,1841.4,1841.2,41.88595]
[1746109688128,1.08591,1841.3,1841.2,40.8]
[1746109688423,2.71514,1841.1,1840.7,4.97622]
[1746109688620,2.71496,1841.2,1840.8,1.08621]
[1746109688824,1.08621,1840.8,1840.7,3.89]
[1746109689131,2.71508,1841.1,1840.5,2.71597]
[1746109689324,3.2078,1840.8,1840.7,1.08627]
[1746109690335,4.29401,1840.8,1840.6,41.88629]
[1746109690925,1.08619,1840.9,1840.7,1.08627]
[1746109691122,3.2078,1840.8,1840.7,1.08627]
[1746109691323,4.29399,1840.9,1840.7,1.08627]
[1746109691528,1.08621,1840.8,1840.7,1.08627]
[1746109691728,1.08627,1840.7,1840.6,41.88628]
[1746109691929,4.29407,1840.7,1840.6,41.88628]
[1746109692328,3.2078,1840.7,1840.6,41.88628]
[1746109693143,4.29407,1840.7,1840.6,40.8]
[1746109693632,1.08637,1840.6,1840.4,4.9754]
[1746109693931,1.08637,1840.6,1840.5,41.88638]
[1746109694330,1.08637,1840.6,1840.5,40.8]
[1746109694531,1.08637,1840.6,1840.5,41.88638]
[1746109694725,1.08633,1840.6,1840.5,41.88638]
[1746109695126,4.29412,1840.7,1840.5,41.88638]
[1746109695327,1.08633,1840.6,1840.5,41.88638]
[1746109695528,4.29412,1840.7,1840.5,41.88638]
[1746109695833,4.29412,1840.7,1840.6,1.08633]
[1746109696532,4.29412,1840.7,1840.5,41.88634]
[1746109696727,2.71597,1840.5,1839.4,5.92531]
[1746109696925,2.71597,1840.5,1839.2,17.93682366]
[1746109696926,1.08682,1839.8,1839.6,1.08692]
[1746109697129,1.08682,1839.8,1839.7,40.8]
[1746109698637,2.71724,1839.7,1839.3,1.08708]
[1746109698835,1.08702,1839.5,1839.3,1.08708]
[1746109699034,5.92504,1839.7,1839.3,1.08708]
[1746109699335,1.08702,1839.5,1839.4,40.8]
[1746109699535,4.29482,1839.5,1839.4,40.8]
[1746109699928,3.2078,1839.5,1839.4,40.8]
[1746109700229,1.08698,1839.5,1839.4,40.8]
[1746109700534,1.08681,1839.8,1839.4,46.72538]
[1746109700734,1.08681,1839.8,1839.7,1.08686]
[1746109701536,1.08681,1839.8,1839.6,1.08691]
[1746109701937,3.2078,1840.0,1839.7,1.08684]
[1746109702139,3.2078,1840.0,1839.6,4.95986]
[1746109702433,1.08681,1839.8,1839.6,4.95986]
[1746109702938,1.08686,1839.7,1839.6,3.873]
[1746109703733,4.29466,1839.7,1839.6,3.873]
[1746109704737,1.08698,1839.5,1839.4,40.8]
[1746109704935,4.29478,1839.5,1839.4,40.8]
[1746109706634,1.08703,1839.4,1839.3,3.873]
[1746109707030,5.92525,1839.5,1839.1,1.08715]
[1746109707235,1.08709,1839.3,1839.2,40.8]
[1746109707631,4.29489,1839.3,1839.2,40.8]
[1746109712746,4.29489,1839.3,1839.2,41.88715]
[1746109713445,1.08709,1839.3,1839.2,41.88715]
[1746109714641,4.29489,1839.3,1839.2,40.8]
[1746109715641,4.29489,1839.3,1839.2,41.88715]
[1746109715845,3.875,1839.9,1839.2,44.0078]
[1746109716042,1.08689,1839.7,1839.6,3.2078]
[1746109716243,1.08689,1839.7,1839.6,4.2947]
[1746109716444,1.08684,1839.8,1839.7,1.08684]
[1746109716845,1.08692,1839.6,1839.5,1.08692]
[1746109717146,1.08689,1839.7,1839.6,1.08692]
[1746109717449,1.0869,1839.7,1839.6,1.08692]
[1746109717949,1.08686,1839.7,1839.6,1.08688]
[1746109718252,1.08684,1839.8,1839.6,1.08688]
[1746109718548,1.08686,1839.7,1839.6,1.08687]
[1746109718752,1.08686,1839.7,1839.6,1.08692]
[1746109719456,3.2078,1839.8,1839.7,1.08686]
[1746109719652,4.29463,1839.8,1839.7,1.08686]
[1746109720046,1.0869,1839.7,1839.6,1.08692]
[1746109720650,1.08692,1839.6,1839.5,1.08693]
[1746109721555,3.2078,1839.8,1839.6,1.0869]
[1746109722156,4.29463,1839.8,1839.6,1.0869]
[1746109723553,1.08686,1839.7,1839.6,1.0869]
[1746109723754,4.29464,1839.8,1839.7,1.08686]
[1746109724056,1.08684,1839.8,1839.7,1.08686]
[1746109724353,4.29464,1839.8,1839.7,1.08686]
[1746109725753,1.08684,1839.8,1839.7,1.08686]
[1746109725955,1.08678,1839.9,1839.8,1.08679]
[1746109726353,4.29452,1840.0,1839.9,1.08674]
[1746109726655,1.08674,1839.9,1839.8,1.08676]
[1746109726856,4.29452,1840.0,1839.9,1.08674]
[1746109727064,1.08675,1839.9,1839.8,1.0868]
[1746109727455,3.2078,1840.0,1839.9,1.08674]
[1746109727456,4.29451,1840.0,1839.9,1.08674]
[1746109727653,1.08675,1839.9,1839.8,1.08676]
[1746109727856,3.2078,1840.0,1839.7,1.08681]
[1746109727857,1.08682,1839.8,1839.7,1.08681]
[1746109728154,1.08676,1839.9,1839.8,1.08676]
[1746109728758,5.92457,1840.0,1839.6,3.875]
[1746109729055,1.08685,1839.8,1839.7,1.08684]
[1746109729357,5.92457,1840.0,1839.8,1.08679]
[1746109729358,1.08679,1839.9,1839.8,1.08679]
[1746109729558,3.2078,1840.0,1839.6,9.30958]
[1746109729861,1.08676,1839.9,1839.8,1.08676]
[1746109730669,3.2078,1840.0,1839.9,1.08674]
[1746109730860,4.29448,1840.0,1839.9,1.08674]
[1746109734762,1.08665,1840.1,1840.0,1.08662]
[1746109736662,3.2078,1840.2,1840.1,1.08662]
[1746109736856,1.08653,1840.3,1840.2,1.08656]
[1746109737162,1.08658,1840.2,1840.1,1.08656]
[1746109737661,3.2078,1840.3,1840.2,1.08656]
[1746109737960,1.08652,1840.3,1840.2,1.08652]
[1746109738169,1.08657,1840.2,1840.1,1.08656]
[1746109740063,4.29435,1840.3,1840.2,1.08656]
[1746109740363,3.2078,1840.3,1840.0,2.7167]
[1746109740661,1.08658,1840.2,1840.1,1.08658]
[1746109740859,4.29435,1840.3,1840.2,1.08656]
[1746109741262,1.08658,1840.2,1840.1,1.08658]
[1746109742266,4.2944,1840.2,1840.1,1.08662]
[1746109742669,3.2078,1840.2,1840.1,1.08662]
[1746109742861,4.29436,1840.2,1840.1,1.08662]
[1746109744169,3.2078,1840.2,1840.1,1.08662]
[1746109744565,4.29426,1840.4,1840.3,1.0865]
[1746109745469,3.2078,1840.4,1840.3,1.0865]
[1746109745766,4.29424,1840.4,1840.3,1.0865]
[1746109746172,1.08652,1840.3,1840.2,1.08651]
[1746109746467,4.29428,1840.4,1840.3,1.0865]
[1746109747065,4.29429,1840.4,1840.3,1.0865]
[1746109747369,3.2078,1840.4,1840.3,41.8865]
[1746109748973,4.29417,1840.6,1840.5,1.08638]
[1746109749372,3.2078,1840.6,1840.5,1.08638]
[1746109749574,4.29413,1840.6,1840.5,1.08638]
[1746109750167,3.2078,1840.6,1840.3,41.8865]
[1746109750368,4.29424,1840.4,1840.3,41.88646]
[1746109751175,3.2078,1840.4,1840.3,41.88646]
[1746109752770,4.29424,1840.4,1840.3,41.88646]
[1746109752963,3.2078,1840.4,1839.5,0.43986402]
[1746109753162,4.29436,1840.2,1840.1,1.08662]
[1746109753567,4.29436,1840.2,1840.1,41.88662]
[1746109753975,3.2078,1840.2,1840.1,41.88662]
[1746109754274,4.29432,1840.3,1840.2,1.08652]
[1746109754670,1.08656,1840.2,1840.1,41.88657]
[1746109756377,4.29435,1840.3,1840.2,1.08656]
[1746109757576,1.08656,1840.2,1840.1,41.88657]
[1746109758882,1.08656,1840.2,1840.1,40.8]
[1746109759075,1.08656,1840.2,1840.1,41.88662]
[1746109760580,1.08662,1840.1,1840.0,1.08664]
[1746109760771,1.08668,1840.0,1839.9,4.94373]
[1746109761176,1.08668,1840.0,1839.9,45.74373]
[1746109761674,1.08668,1840.0,1839.9,40.8]
[1746109761874,1.08668,1840.0,1839.9,41.88674]
[1746109762273,3.2078,1840.1,1840.0,1.08668]
[1746109762476,6.81962952,1840.6,1840.5,1.08638]
[1746109762685,13.78199952,1840.6,1840.5,1.08638]
[1746109763179,12.69562952,1840.6,1840.5,1.08638]
[1746109763576,13.78195952,1840.6,1840.5,1.08638]
[1746109764583,10.17013,1840.6,1840.5,1.08638]
[1746109766079,4.29413,1840.6,1840.5,1.08638]
[1746109767086,3.2078,1840.6,1840.5,1.08638]
[1746109770782,3.61182952,1840.8,1840.7,1.08627]
[1746109770983,4.69803952,1840.8,1840.7,1.08627]
[1746109771186,6.81962952,1840.8,1840.7,1.08627]
[1746109771783,7.90583952,1840.8,1840.7,1.08627]
[1746109772282,4.29401,1840.8,1840.7,1.08627]
[1746109773489,3.2078,1840.8,1840.7,1.08627]
[1746109774087,4.29401,1840.8,1840.7,1.08627]
[1746109775686,1.08628,1840.7,1840.6,1.08629]
[1746109776193,1.08627,1840.7,1840.5,4.92733]
[1746109776389,1.08633,1840.6,1840.5,4.92735]
[1746109776689,1.08631,1840.7,1840.6,1.08631]
[1746109780299,1.08633,1840.6,1840.5,4.92738]
[1746109780489,3.2078,1840.6,1840.5,4.92738]
[1746109780790,3.2078,1840.8,1840.7,1.08622]
[1746109781096,3.61182952,1840.9,1840.8,1.08621]
[1746109781097,4.69797952,1840.9,1840.8,1.08621]
[1746109783298,1.08623,1840.8,1840.7,1.08622]
[1746109783498,4.69802952,1840.9,1840.8,1.08621]
[1746109783692,1.08624,1840.8,1840.7,1.08624]
[1746109783992,7.90582952,1840.9,1840.8,1.08621]
[1746109784394,4.294,1840.9,1840.8,1.08621]
[1746109785900,1.08623,1840.8,1840.7,1.08623]
[1746109787300,4.294,1840.9,1840.8,1.08621]
[1746109789401,1.08623,1840.8,1840.7,1.08622]
[1746109790099,4.29397,1840.9,1840.8,1.08621]
[1746109791199,3.2078,1840.9,1840.5,2.71597]
[1746109791398,4.2941,1840.7,1840.6,1.08629]
[1746109792405,3.2078,1840.7,1840.6,1.08629]
[1746109794905,4.29407,1840.7,1840.6,1.08629]
[1746109795506,3.2078,1840.7,1840.6,1.08629]
[1746109795708,1.08634,1840.6,1840.5,1.08638]
[1746109795905,4.29411,1840.7,1840.5,1.08638]
[1746109796306,4.29411,1840.7,1840.6,1.08633]
[1746109798706,1.08631,1840.7,1840.6,1.08633]
[1746109799306,1.08636,1840.6,1840.5,1.08636]
[1746109799607,1.08634,1840.6,1840.5,1.08633]
[1746109800206,3.2078,1840.7,1840.6,1.08633]
[1746109800513,5.876,1841.0,1840.6,1.08633]
[1746109800806,1.08615,1840.9,1840.7,1.08623]
[1746109801207,1.08615,1840.9,1840.8,1.08621]
[1746109801602,6.96213,1841.0,1840.9,1.08615]
[1746109801803,5.876,1841.0,1840.9,1.08615]
[1746109802202,6.96209,1841.0,1840.9,1.08615]
[1746109802509,5.876,1841.0,1840.9,1.08615]
[1746109802711,6.96209,1841.0,1840.9,1.08615]
[1746109803711,5.876,1841.0,1840.7,3.825]
[1746109804011,3.2078,1840.8,1840.7,4.91122]
[1746109805008,1.08619,1840.9,1840.8,1.08621]
[1746109805611,4.29391,1841.0,1840.9,1.08615]
[1746109808401,4.29389,1841.0,1840.9,1.08615]
[1746109808601,3.2078,1841.0,1840.9,1.08615]
[1746109808814,4.29389,1841.0,1840.9,1.08615]
[1746109809712,3.2078,1841.0,1840.7,3.825]
[1746109809914,4.29401,1840.8,1840.7,1.08623]
[1746109810409,3.2078,1840.8,1840.7,1.08623]
[1746109811110,4.29401,1840.8,1840.7,1.08623]
[1746109811312,3.2078,1840.8,1840.7,1.08623]
[1746109811612,4.29401,1840.8,1840.7,1.08623]
[1746109812413,3.2078,1840.8,1840.7,1.08623]
[1746109813912,1.08616,1840.9,1840.8,1.08621]
[1746109814111,1.08616,1840.9,1840.5,3.2078]
[1746109814112,4.29392,1841.0,1840.9,1.08615]
[1746109814508,3.6247829,1841.1,1841.0,1.08609]
[1746109814715,7.24956581,1841.1,1841.0,1.08609]
[1746109815014,7.24956581,1841.1,1841.0,41.88609]
[1746109815317,8.33559581,1841.1,1841.0,41.88609]
[1746109816517,8.33559581,1841.1,1841.0,40.8]
[1746109816718,1.08609,1841.0,1840.9,1.08611]
[1746109816910,3.2078,1841.0,1840.9,1.08615]
[1746109817218,3.2078,1841.0,1840.9,41.88615]
[1746109817517,1.0863,1840.7,1840.6,1.08629]
[1746109817907,1.0863,1840.7,1840.6,41.88629]
[1746109819317,5.876,1841.0,1840.7,1.08627]
[1746109819519,5.876,1841.0,1840.9,1.08615]
[1746109819816,17.22946348,1841.1,1841.0,1.08609]
[1746109820215,17.22946348,1841.1,1840.8,5.43102]
[1746109820422,17.22946348,1841.1,1841.0,1.08609]
[1746109821423,17.22946348,1841.1,1841.0,4.29389]
[1746109821615,17.22946348,1841.1,1841.0,1.08609]
[1746109821921,3.62896314,1841.2,1841.1,1.08603]
[1746109822717,3.62896314,1841.2,1841.0,4.89505]
[1746109822918,1.08603,1841.1,1841.0,4.89505]
[1746109823419,3.2078,1841.1,1841.0,4.89505]
[1746109825119,4.29383,1841.1,1841.0,4.89505]
[1746109825323,4.29383,1841.1,1841.0,3.809]
[1746109825514,3.2078,1841.1,1840.9,1.08613]
[1746109826024,4.29387,1841.1,1840.9,1.08613]
[1746109826225,3.2078,1841.1,1841.0,1.08609]
[1746109827120,3.2078,1841.1,1841.0,4.89509]
[1746109828827,7.92269314,1841.3,1841.0,4.89509]
[1746109829018,6.83676314,1841.3,1841.2,1.08597]
[1746109829326,3.62896314,1841.3,1841.2,1.08597]
[1746109831227,6.83676314,1841.3,1841.0,3.809]
[1746109831530,4.29372,1841.3,1841.2,1.08597]
[1746109832927,3.2078,1841.3,1841.2,1.08597]
[1746109834621,1.08587,1841.4,1841.3,1.08591]